fUST/lending_fUST_20250602
["ID","MTS","AMOUNT","RATE_DAILY","PERIOD"]
[363785863,1748871042589,-500.0,0.0001934,2]
[363785865,1748871042599,-500.0,0.0001934,2]
[363785866,1748871042610,-500.0,0.0001934,2]
[363785869,1748871042621,-500.0,0.0001934,2]
[363785871,1748871042633,-1994.85272514,0.00019348,2]
[363785873,1748871042645,-500.0,0.00019367,2]
[363785875,1748871042656,-500.0,0.00019367,2]
[363785877,1748871042666,-229.96569639,0.00019367,2]
[363785879,1748871042679,-500.0,0.00019367,2]
[363785881,1748871042689,-157.59836485,0.00019394,2]
[363785883,1748871042700,-500.0,0.00019394,2]
[363785886,1748871042712,-500.0,0.00019394,2]
[363785888,1748871042723,-500.0,0.00019422,2]
[363785890,1748871042739,-500.0,0.00019422,2]
[363785892,1748871042749,-500.0,0.00019449,2]
[363785894,1748871042760,-500.0,0.00019449,2]
[363785896,1748871042771,-409.96925425,0.00019461,2]
[363785898,1748871042781,-500.0,0.00019477,2]
[363785901,1748871042792,-500.0,0.00019477,2]
[363785903,1748871042803,-8739.29641174,0.000195,2]
[363785905,1748871042814,-500.0,0.00019504,2]
[363785907,1748871042825,-500.0,0.00019504,2]
[363785910,1748871042835,-500.0,0.00019531,2]
[363785911,1748871042846,-500.0,0.00019531,2]
[363785916,1748871042857,-1994.85272514,0.00019555,2]
[363785920,1748871042867,-500.0,0.00019559,2]
[363785923,1748871042878,-500.0,0.00019559,2]
[363785927,1748871042887,-430.0,0.00019586,2]
[363785931,1748871042899,-430.0,0.00019586,2]
[363785936,1748871042909,-174.98,0.00019586,2]
[363785940,1748871042919,-1587.59,0.00019586,2]
[363785945,1748871042933,-816.04,0.00019586,2]
[363785948,1748871042944,-683.16,0.00019586,2]
[363785951,1748871042955,-685.71,0.00019586,2]
[363785954,1748871042965,-1394.89,0.00019586,2]
[363785958,1748871042977,-500.0,0.00019586,2]
[363785962,1748871042987,-500.0,0.00019586,2]
[363785964,1748871042996,-744.0,0.00019587,2]
[363785968,1748871043007,-351.49300588,0.00019587,2]
[363785971,1748871043017,-430.0,0.00019587,2]
[363785974,1748871043027,-971.58,0.00019587,2]
[363785977,1748871043038,-430.0,0.00019587,2]
[363785980,1748871043048,-430.0,0.00019587,2]
[363785983,1748871043059,-430.0,0.00019587,2]
[363785986,1748871043070,-430.0,0.00019587,2]
[363785989,1748871043081,-430.0,0.00019587,2]
[363785993,1748871043093,-430.0,0.00019587,2]
[363785996,1748871043107,-430.0,0.00019587,2]
[363785999,1748871043117,-1981.62,0.00019587,2]
[363786001,1748871043128,-1148.91,0.00019587,2]
[363786003,1748871043139,-434.71,0.00019587,2]
[363786005,1748871043150,-430.0,0.00019588,2]
[363786007,1748871043162,-430.0,0.00019588,2]
[363786009,1748871043173,-615.016,0.000196,2]
[363786012,1748871043184,-500.0,0.00019614,2]
[363786014,1748871043197,-500.0,0.00019614,2]
[363786016,1748871043208,-500.0,0.00019641,2]
[363786018,1748871043219,-539.05123427,0.00019641,2]
[363786020,1748871043236,-500.0,0.00019668,2]
[363786022,1748871043247,-205.49080572,0.0001967,2]
[363786024,1748871043258,-500.0,0.0001967,2]
[363786026,1748871043273,-380.27793115,0.00019696,2]
[363786028,1748871043284,-1994.85272514,0.00019762,2]
[363786030,1748871043294,-587.0,0.00019786,2]
[363786032,1748871043305,-430.0,0.0001986,2]
[363786034,1748871043316,-430.0,0.0001986,2]
[363786036,1748871043327,-1587.59,0.0001986,2]
[363786038,1748871043337,-816.04,0.0001986,2]
[363786040,1748871043347,-683.16,0.0001986,2]
[363786042,1748871043357,-685.71,0.0001986,2]
[363786044,1748871043371,-1394.89,0.0001986,2]
[363786046,1748871043383,-744.0,0.00019861,2]
[363786048,1748871043395,-477.31207717,0.00019861,2]
[363786051,1748871043405,-971.58,0.00019861,2]
[363786053,1748871043416,-430.0,0.00019861,2]
[363786055,1748871043426,-430.0,0.00019861,2]
[363786058,1748871043437,-430.0,0.00019861,2]
[363786061,1748871043448,-430.0,0.00019861,2]
[363786064,1748871043458,-430.0,0.00019861,2]
[363786068,1748871043468,-430.0,0.00019861,2]
[363786070,1748871043483,-430.0,0.00019861,2]
[363786072,1748871043494,-1981.62,0.00019861,2]
[363786074,1748871043504,-1148.91,0.00019861,2]
[363786076,1748871043514,-434.71,0.00019861,2]
[363786078,1748871043524,-430.0,0.00019862,2]
[363786080,1748871043534,-430.0,0.00019862,2]
[363786082,1748871043544,-1994.85272514,0.00019969,2]
[363786084,1748871043554,-500.0,0.0001998,2]
[363786086,1748871043564,-19305.0,0.0002,2]
[363786088,1748871043574,-150.0,0.0002,7]
[363786090,1748871043584,-28345.18528786,0.0002,2]
[363786092,1748871043595,-500.52456652,0.0002,2]
[363786094,1748871043605,-501.49966248,0.0002,2]
[363786096,1748871043615,-962.0,0.00020054,2]
[363786098,1748871043626,-430.0,0.00020134,2]
[363786101,1748871043639,-430.0,0.00020134,2]
[363786103,1748871043650,-1587.59,0.00020134,2]
[363786105,1748871043660,-816.04,0.00020134,2]
[363786107,1748871043670,-683.16,0.00020134,2]
[363786109,1748871043683,-685.71,0.00020134,2]
[363786111,1748871043694,-1394.89,0.00020134,2]
[363786113,1748871043705,-744.0,0.00020135,2]
[363786115,1748871043717,-971.58,0.00020135,2]
[363786117,1748871043731,-430.0,0.00020135,2]
[363786119,1748871043741,-430.0,0.00020135,2]
[363786121,1748871043752,-430.0,0.00020135,2]
[363786123,1748871043762,-430.0,0.00020135,2]
[363786125,1748871043773,-549.37,0.00020135,2]
[363786128,1748871043784,-430.0,0.00020135,2]
[363786130,1748871043795,-430.0,0.00020135,2]
[363786132,1748871043806,-1981.62,0.00020135,2]
[363786134,1748871043817,-1148.91,0.00020135,2]
[363786136,1748871043827,-434.71,0.00020135,2]
[363786138,1748871043838,-430.0,0.00020136,2]
[363786140,1748871043848,-430.0,0.00020136,2]
[363786142,1748871043858,-156.6840351,0.00020145,2]
[363786144,1748871043869,-1994.85272514,0.00020176,2]
[363786145,1748871043878,-202.598535,0.00020187,2]
[363786146,1748871043888,-1000.0,0.00020218,2]
[363786147,1748871043898,-1994.85272514,0.00020383,3]
[363786148,1748871043908,-430.0,0.00020408,2]
[363786149,1748871043918,-430.0,0.00020408,2]
[363786150,1748871043927,-1587.59,0.00020408,2]
[363786151,1748871043938,-816.04,0.00020408,2]
[363786152,1748871043948,-683.16,0.00020408,2]
[363786153,1748871043958,-685.71,0.00020408,2]
[363786154,1748871043968,-1394.89,0.00020408,2]
[363786155,1748871043980,-744.0,0.00020409,2]
[363786156,1748871043990,-971.58,0.00020409,2]
[363786157,1748871043999,-430.0,0.00020409,2]
[363786158,1748871044009,-430.0,0.00020409,2]
[363786159,1748871044018,-430.0,0.00020409,2]
[363786160,1748871044028,-430.0,0.00020409,2]
[363786161,1748871044038,-430.0,0.00020409,2]
[363786162,1748871044047,-430.0,0.00020409,2]
[363786163,1748871044057,-1981.62,0.00020409,2]
[363786165,1748871044068,-1148.91,0.00020409,2]
[363786167,1748871044078,-434.71,0.00020409,2]
[363786169,1748871044088,-430.0,0.0002041,2]
[363786171,1748871044103,-430.0,0.0002041,2]
[363786173,1748871044113,-207.4,0.0002051,2]
[363786175,1748871044123,-750.0,0.0002051,2]
[363786189,1748871044255,-750.0,0.0002051,2]
[363786191,1748871044265,-750.0,0.0002051,2]
[363786193,1748871044276,-750.0,0.0002051,2]
[363786195,1748871044286,-5000.0,0.0002051,2]
[363786197,1748871044296,-750.0,0.0002051,2]
[363786199,1748871044305,-750.0,0.0002051,2]
[363786201,1748871044315,-750.0,0.0002051,2]
[363786203,1748871044325,-750.0,0.0002051,2]
[363786205,1748871044335,-750.0,0.0002051,2]
[363786207,1748871044345,-750.0,0.0002051,2]
[363786209,1748871044354,-750.0,0.0002051,2]
[363786211,1748871044365,-750.0,0.0002051,2]
[363786213,1748871044375,-750.0,0.0002051,2]
[363786215,1748871044385,-750.0,0.0002051,2]
[363786217,1748871044395,-750.0,0.0002051,2]
[363786219,1748871044406,-540.41710014,0.00020528,2]
[363786221,1748871044415,-530.9,0.00020547,2]
[363786223,1748871044425,-1994.85272514,0.0002059,3]
[363786225,1748871044434,-2288.43,0.000206,2]
[363786227,1748871044444,-10740.54,0.000206,2]
[363786229,1748871044454,-409.96925425,0.00020681,2]
[363786231,1748871044465,-326.78743819,0.00020682,2]
[363786233,1748871044475,-430.0,0.00020682,2]
[363786236,1748871044489,-1587.59,0.00020682,2]
[363786238,1748871044499,-816.04,0.00020682,2]
[363786240,1748871044509,-683.16,0.00020682,2]
[363786241,1748871044519,-685.71,0.00020682,2]
[363786244,1748871044529,-1394.89,0.00020682,2]
[363786246,1748871044539,-744.0,0.00020683,2]
[363786247,1748871044549,-971.58,0.00020683,2]
[363786250,1748871044559,-430.0,0.00020683,2]
[363786252,1748871044569,-430.0,0.00020683,2]
[363786254,1748871044579,-206.45,0.00020683,2]
[363786255,1748871044589,-430.0,0.00020683,2]
[363786257,1748871044599,-430.0,0.00020683,2]
[363786260,1748871044610,-430.0,0.00020683,2]
[363786262,1748871044619,-1981.62,0.00020683,2]
[363786264,1748871044630,-1148.91,0.00020683,2]
[363786266,1748871044643,-434.71,0.00020683,2]
[363786267,1748871044653,-430.0,0.00020684,2]
[363786270,1748871044664,-430.0,0.00020684,2]
[363786271,1748871044674,-159.45006171,0.00020712,2]
[363786273,1748871044685,-405.0,0.00020744,2]
[363786275,1748871044695,-1500.0,0.00020766,2]
[363786277,1748871044704,-1994.85272514,0.00020797,4]
[363786279,1748871044718,-159.45006171,0.00020904,2]
[363786281,1748871044729,-28262.42053452,0.00020917,2]
[363786283,1748871044739,-430.0,0.00020956,2]
[363786285,1748871044750,-1587.59,0.00020956,2]
[363786287,1748871044760,-816.04,0.00020956,2]
[363786289,1748871044769,-683.16,0.00020956,2]
[363786291,1748871044779,-685.71,0.00020956,2]
[363786293,1748871044789,-1394.89,0.00020956,2]
[363786295,1748871044799,-744.0,0.00020957,2]
[363786297,1748871044808,-971.58,0.00020957,2]
[363786299,1748871044818,-430.0,0.00020957,2]
[363786301,1748871044829,-202.33907509,0.00020957,2]
[363786303,1748871044839,-430.0,0.00020957,2]
[363786305,1748871044849,-430.0,0.00020957,2]
[363786307,1748871044859,-430.0,0.00020957,2]
[363786309,1748871044869,-1981.62,0.00020957,2]
[363786311,1748871044880,-1148.91,0.00020957,2]
[363786313,1748871044890,-434.71,0.00020957,2]
[363786315,1748871044900,-266.99551079,0.00020958,2]
[363786317,1748871044910,-430.0,0.00020958,2]
[363786319,1748871044920,-1994.85272514,0.00021003,4]
[363786321,1748871044931,-5000.0,0.00021058,2]
[363786323,1748871044941,-600.0,0.00021068,2]
[363786325,1748871044951,-500.0,0.00021068,2]
[363786327,1748871044962,-500.0,0.00021068,2]
[363786329,1748871044971,-500.0,0.00021068,2]
[363786331,1748871044983,-500.0,0.00021068,2]
[363786333,1748871044993,-500.0,0.00021068,2]
[363786335,1748871045003,-500.0,0.00021068,2]
[363786337,1748871045012,-500.0,0.00021068,2]
[363786339,1748871045022,-500.0,0.00021068,2]
[363786341,1748871045032,-530.9,0.00021095,3]
[363786343,1748871045042,-159.45006171,0.00021096,2]
[363786345,1748871045053,-500.0,0.00021171,2]
[363786347,1748871045063,-500.0,0.00021171,2]
[363786349,1748871045072,-1994.85272514,0.0002121,4]
[363786351,1748871045082,-430.0,0.0002123,2]
[363786353,1748871045092,-1587.59,0.0002123,2]
[363786355,1748871045102,-816.04,0.0002123,2]
[363786357,1748871045112,-683.16,0.0002123,2]
[363786360,1748871045122,-685.71,0.0002123,2]
[363786361,1748871045131,-744.0,0.00021231,2]
[363786363,1748871045141,-971.58,0.00021231,2]
[363786365,1748871045151,-430.0,0.00021231,2]
[363786367,1748871045162,-430.0,0.00021231,2]
[363786370,1748871045172,-430.0,0.00021231,2]
[363786372,1748871045183,-430.0,0.00021231,2]
[363786374,1748871045193,-1981.62,0.00021231,2]
[363786376,1748871045203,-1148.91,0.00021231,2]
[363786378,1748871045212,-434.71,0.00021231,2]
[363786380,1748871045222,-180.45810196,0.00021232,2]
[363786382,1748871045233,-159.45006171,0.0002126,2]
[363786384,1748871045243,-2000.0,0.00021314,2]
[363786386,1748871045252,-500.0,0.00021327,2]
[363786388,1748871045262,-500.0,0.00021333,7]
[363786389,1748871045272,-500.0,0.00021333,7]
[363786391,1748871045282,-500.0,0.00021333,7]
[363786393,1748871045292,-500.0,0.00021333,7]
[363786395,1748871045302,-500.0,0.00021333,7]
[363786397,1748871045312,-500.0,0.00021333,7]
[363786400,1748871045322,-500.0,0.00021333,7]
[363786402,1748871045332,-500.0,0.00021333,7]
[363786403,1748871045341,-500.0,0.00021333,7]
[363786406,1748871045351,-500.0,0.00021333,7]
[363786407,1748871045360,-500.0,0.00021333,7]
[363786409,1748871045370,-500.0,0.00021333,7]
[363786411,1748871045380,-500.0,0.00021333,7]
[363786413,1748871045390,-500.0,0.00021333,7]
[363786415,1748871045399,-500.0,0.00021333,7]
[363786417,1748871045409,-500.0,0.00021333,7]
[363786419,1748871045419,-500.0,0.00021333,7]
[363786421,1748871045429,-500.0,0.00021333,7]
[363786423,1748871045439,-500.0,0.00021333,7]
[363786425,1748871045448,-500.0,0.00021333,7]
[363786427,1748871045458,-500.0,0.00021333,7]
[363786429,1748871045467,-500.0,0.00021333,7]
[363786431,1748871045477,-500.0,0.00021333,7]
[363786433,1748871045488,-500.0,0.00021333,7]
[363786435,1748871045498,-500.0,0.00021333,7]
[363786437,1748871045508,-500.0,0.00021333,7]
[363786439,1748871045517,-500.0,0.00021333,7]
[363786441,1748871045527,-500.0,0.00021333,7]
[363786443,1748871045536,-500.0,0.00021333,7]
[363786445,1748871045546,-500.0,0.00021333,7]
[363786447,1748871045555,-155.46652676,0.00021333,7]
[363786461,1748871045680,-344.53347324,0.00021333,7]
[363786463,1748871045691,-500.0,0.00021333,7]
[363786465,1748871045701,-500.0,0.00021333,7]
[363786467,1748871045712,-500.0,0.00021333,7]
[363786469,1748871045722,-500.0,0.00021333,7]
[363786471,1748871045734,-500.0,0.00021333,7]
[363786473,1748871045743,-500.0,0.00021333,7]
[363786475,1748871045753,-225.29,0.00021333,7]
[363786477,1748871045763,-842.5625,0.0002134,7]
[363786479,1748871045773,-12668.79298183,0.0002134,7]
[363786481,1748871045783,-212.83419937,0.0002134,7]
[363786483,1748871045793,-1994.85272514,0.00021417,5]
[363786485,1748871045803,-159.45006171,0.00021452,2]
[363786487,1748871045813,-430.0,0.00021504,2]
[363786489,1748871045823,-1587.59,0.00021504,2]
[363786491,1748871045833,-212.99405871,0.00021504,2]
[363786493,1748871045846,-603.04594129,0.00021504,2]
[363786495,1748871045857,-683.16,0.00021504,2]
[363786497,1748871045867,-112.76949732,0.00021504,2]
[363786500,1748871045879,-572.94050268,0.00021504,2]
[363786502,1748871045889,-744.0,0.00021505,2]
[363786504,1748871045900,-971.58,0.00021505,2]
[363786506,1748871045910,-430.0,0.00021505,2]
[363786507,1748871045919,-430.0,0.00021505,2]
[363786518,1748871046017,-430.0,0.00021505,2]
[363786520,1748871046029,-430.0,0.00021505,2]
[363786522,1748871046038,-1981.62,0.00021505,2]
[363786524,1748871046048,-1148.91,0.00021505,2]
[363786526,1748871046059,-434.71,0.00021505,2]
[363786528,1748871046069,-250.0,0.00021547,2]
[363786530,1748871046078,-5000.0,0.00021606,2]
[363786532,1748871046088,-1200.0,0.00021616,2]
[363786534,1748871046098,-1000.0,0.00021616,2]
[363786536,1748871046108,-1000.0,0.00021616,2]
[363786538,1748871046118,-1000.0,0.00021616,2]
[363786540,1748871046127,-1000.0,0.00021616,2]
[363786542,1748871046136,-1000.0,0.00021616,2]
[363786544,1748871046146,-1000.0,0.00021616,2]
[363786546,1748871046156,-1000.0,0.00021616,2]
[363786548,1748871046166,-1000.0,0.00021616,2]
[363786550,1748871046176,-823.0,0.0002162,2]
[363786552,1748871046185,-1994.85272514,0.00021624,5]
[363786554,1748871046195,-530.9,0.00021643,4]
[363786556,1748871046205,-159.45006171,0.00021644,2]
[363786558,1748871046214,-6801.28645517,0.00021698,2]
[363786565,1748871046276,-246.60453282,0.00019175,2]
[363786567,1748871046286,-153.39546718,0.0002123,2]
[363786570,1748871046298,-1241.49453282,0.0002123,2]
[363786572,1748871046308,-1394.89,0.00021504,2]
[363786573,1748871046318,-2143.55080006,0.00021698,2]
[363786576,1748871046329,-708.88610196,0.00021698,2]
[363786578,1748871046342,-2361.10410906,0.00021698,2]
[363786595,1748871046518,-430.0,0.00016572,2]
[363786596,1748871046527,-430.0,0.00016573,2]
[363786597,1748871046537,-430.0,0.00016573,2]
[363786598,1748871046546,-1685.86823948,0.00016678,2]
[363786602,1748871046582,-205.22215091,0.00016474,2]
[363786603,1748871046591,-1057.9706148,0.00016678,2]
[363786783,1748871048311,-304.23821814,0.00016678,2]
[363787099,1748871263764,7899.6482406,0.00015709,2]
[363787100,1748871263793,15828.88631579,0.00015709,2]
[363787101,1748871263816,799.48300491,0.00015709,2]
[363787108,1748871557991,279.487645,0.00013699,2]
[363787110,1748871563226,288.682364,0.00015572,2]
[363787111,1748871607346,5000.0,0.00016,2]
[363787112,1748871624160,5000.0,0.00016,2]
[363787113,1748871639447,4461.23330188,0.00016,2]
[363787114,1748871639471,538.76669812,0.00016,2]
[363787115,1748871655658,553.29632232,0.00016,2]
[363787116,1748871685621,1433.55018257,0.00016,2]
[363787118,1748871745065,1117.61946518,0.00016,2]
[363787121,1748871819496,934.5713189,0.00016,2]
[363787122,1748871837803,157.47831222,6.8e-07,2]
[363787123,1748871837926,157.47831222,6.8e-07,2]
[363787124,1748871838084,157.47831222,6.8e-07,2]
[363787125,1748871838241,157.47831222,6.8e-07,2]
[363787127,1748871880104,1656.35173069,0.00016,2]
[363787137,1748872138906,157.42707703,6.8e-07,2]
[363787142,1748872203143,978.15761896,0.00015,2]
[363787204,1748872233227,-1000.0,0.0001624,2]
[363787205,1748872233237,-156.6840351,0.00016468,2]
[363787207,1748872233252,-261.28161753,0.00016471,2]
[363787209,1748872233269,-3414.45698211,0.00016472,7]
[363787211,1748872233279,-300.0,0.00016566,2]
[363787214,1748872233290,-277.0,0.00016566,2]
[363787215,1748872233301,-430.0,0.00016567,2]
[363787217,1748872233311,-430.0,0.00016567,2]
[363787219,1748872233320,-430.0,0.00016567,2]
[363787220,1748872233330,-430.0,0.00016567,2]
[363787221,1748872233340,-500.0,0.00016567,2]
[363787222,1748872233350,-500.0,0.00016567,2]
[363787223,1748872233361,-500.0,0.00016567,2]
[363787225,1748872233370,-500.0,0.00016567,2]
[363787226,1748872233381,-228.29939962,0.00016567,2]
[363787227,1748872233390,-548.93707185,0.00016567,2]
[363787228,1748872233401,-500.0,0.00016567,2]
[363787229,1748872233412,-500.0,0.00016567,2]
[363787230,1748872233422,-500.0,0.00016567,2]
[363787231,1748872233431,-500.0,0.00016567,2]
[363787232,1748872233441,-430.0,0.00016567,2]
[363787233,1748872233452,-430.0,0.00016567,2]
[363787234,1748872233462,-430.0,0.00016567,2]
[363787235,1748872233473,-394.99251723,0.00016567,2]
[363787236,1748872233483,-430.0,0.00016567,2]
[363787237,1748872233495,-430.0,0.00016567,2]
[363787238,1748872233510,-430.0,0.00016567,2]
[363787239,1748872233521,-1058.41,0.00016567,2]
[363787240,1748872233531,-545.86,0.00016567,2]
[363787241,1748872233541,-510.58168938,0.00016567,2]
[363787242,1748872233552,-505.56399521,0.00016567,2]
[363787243,1748872233563,-430.0,0.00016567,2]
[363787244,1748872233577,-430.0,0.00016567,2]
[363787245,1748872233588,-430.0,0.00016567,2]
[363787246,1748872233598,-430.0,0.00016567,2]
[363787247,1748872233609,-431.46534357,0.00016567,2]
[363787248,1748872233619,-510.15,0.00016567,2]
[363787249,1748872233630,-430.0,0.00016567,2]
[363787250,1748872233641,-575.87,0.00016567,2]
[363787251,1748872233653,-410.59598332,0.00016567,2]
[363787252,1748872233662,-1011.77,0.00016567,2]
[363787253,1748872233675,-430.0,0.00016567,2]
[363787254,1748872233685,-430.0,0.00016567,2]
[363787255,1748872233695,-430.0,0.00016567,2]
[363787256,1748872233705,-430.0,0.00016567,2]
[363787257,1748872233715,-430.00000002,0.00016568,2]
[363787258,1748872233726,-430.0,0.00016568,2]
[363787259,1748872233736,-430.0,0.00016568,2]
[363787260,1748872233751,-430.0,0.00016568,2]
[363787261,1748872233761,-409.94680605,0.00016568,2]
[363787262,1748872233772,-431.09057324,0.00016568,2]
[363787263,1748872233783,-430.0,0.00016568,2]
[363787264,1748872233793,-401.48575184,0.00016568,2]
[363787265,1748872233804,-402.4125645,0.00016568,2]
[363787266,1748872233815,-430.0,0.00016568,2]
[363787267,1748872233826,-430.0,0.00016568,2]
[363787268,1748872233836,-517.75153187,0.00016568,2]
[363787269,1748872233846,-430.0,0.00016568,2]
[363787270,1748872233856,-438.62704701,0.00016568,2]
[363787271,1748872233866,-430.0,0.00016568,2]
[363787272,1748872233877,-507.89169179,0.00016568,2]
[363787273,1748872233886,-430.0,0.00016568,2]
[363787274,1748872233896,-430.0,0.00016568,2]
[363787275,1748872233907,-430.0,0.00016568,2]
[363787276,1748872233917,-430.0,0.00016568,2]
[363787277,1748872233928,-430.0,0.00016568,2]
[363787278,1748872233938,-430.0,0.00016568,2]
[363787279,1748872233947,-430.0,0.00016568,2]
[363787280,1748872233957,-430.0,0.00016568,2]
[363787281,1748872233967,-1000.0,0.00016568,2]
[363787282,1748872233977,-433.37834558,0.00016568,2]
[363787283,1748872233987,-430.0,0.00016568,2]
[363787284,1748872233998,-430.0,0.00016568,2]
[363787285,1748872234009,-430.0,0.00016568,2]
[363787286,1748872234020,-430.0,0.00016568,2]
[363787287,1748872234033,-430.0,0.00016568,2]
[363787288,1748872234043,-430.93674973,0.00016568,2]
[363787289,1748872234054,-433.09229244,0.00016568,2]
[363787290,1748872234065,-430.0,0.00016568,2]
[363787291,1748872234075,-430.0,0.00016568,2]
[363787292,1748872234085,-430.0,0.00016568,2]
[363787293,1748872234095,-430.0,0.00016568,2]
[363787294,1748872234105,-430.0,0.00016568,2]
[363787295,1748872234114,-430.0,0.00016568,2]
[363787296,1748872234124,-406.50490073,0.00016568,2]
[363787297,1748872234137,-430.0,0.00016568,2]
[363787298,1748872234147,-430.0,0.00016568,2]
[363787299,1748872234157,-430.0,0.00016568,2]
[363787300,1748872234166,-430.0,0.00016568,2]
[363787301,1748872234177,-430.0,0.00016568,2]
[363787302,1748872234189,-430.0,0.00016568,2]
[363787303,1748872234199,-430.0,0.00016568,2]
[363787304,1748872234210,-430.0,0.00016568,2]
[363787305,1748872234220,-517.00766206,0.00016568,2]
[363787306,1748872234230,-430.0,0.00016568,2]
[363787307,1748872234240,-422.28568139,0.00016568,2]
[363787308,1748872234253,-430.0,0.00016568,2]
[363787309,1748872234263,-430.0,0.00016568,2]
[363787310,1748872234273,-402.26377488,0.00016568,2]
[363787311,1748872234282,-430.0,0.00016568,2]
[363787312,1748872234292,-430.0,0.00016568,2]
[363787313,1748872234302,-430.0,0.00016568,2]
[363787314,1748872234312,-504.95294135,0.00016568,2]
[363787315,1748872234321,-430.0,0.00016568,2]
[363787316,1748872234331,-443.76078649,0.00016568,2]
[363787317,1748872234341,-430.0,0.00016568,2]
[363787318,1748872234351,-430.0,0.00016568,2]
[363787319,1748872234362,-430.0,0.00016568,2]
[363787320,1748872234371,-430.0,0.00016568,2]
[363787321,1748872234381,-430.0,0.00016568,2]
[363787322,1748872234392,-430.0,0.00016568,2]
[363787323,1748872234401,-430.0,0.00016568,2]
[363787324,1748872234411,-430.0,0.00016568,2]
[363787325,1748872234422,-248.99506919,0.00016568,2]
[363787326,1748872234432,-430.0,0.00016568,2]
[363787327,1748872234442,-430.0,0.00016568,2]
[363787328,1748872234452,-430.0,0.00016568,2]
[363787329,1748872234462,-245.10365391,0.00016568,2]
[363787330,1748872234471,-430.0,0.00016568,2]
[363787331,1748872234481,-411.76600262,0.00016568,2]
[363787332,1748872234491,-430.0,0.00016568,2]
[363787333,1748872234504,-403.09172572,0.00016568,2]
[363787334,1748872234513,-430.0,0.00016568,2]
[363787335,1748872234523,-430.0,0.00016568,2]
[363787336,1748872234533,-430.0,0.00016568,2]
[363787337,1748872234543,-430.0,0.00016568,2]
[363787338,1748872234553,-430.0,0.00016568,2]
[363787339,1748872234563,-430.0,0.00016568,2]
[363787340,1748872234573,-430.0,0.00016568,2]
[363787341,1748872234583,-426.53635209,0.00016568,2]
[363787342,1748872234593,-430.0,0.00016568,2]
[363787343,1748872234603,-497.99699983,0.00016568,2]
[363787344,1748872234613,-430.0,0.00016568,2]
[363787345,1748872234623,-430.0,0.00016568,2]
[363787346,1748872234632,-430.0,0.00016568,2]
[363787347,1748872234643,-430.0,0.00016568,2]
[363787348,1748872234652,-430.0,0.00016568,2]
[363787349,1748872234663,-430.0,0.00016568,2]
[363787350,1748872234672,-430.0,0.00016568,2]
[363787351,1748872234682,-500.0,0.00016568,2]
[363787352,1748872234693,-500.0,0.00016568,2]
[363787353,1748872234703,-430.0,0.00016568,2]
[363787354,1748872234713,-403.54481353,0.00016568,2]
[363787355,1748872234723,-430.0,0.00016568,2]
[363787356,1748872234733,-448.78830593,0.00016568,2]
[363787357,1748872234743,-430.0,0.00016568,2]
[363787358,1748872234755,-403.92090289,0.00016568,2]
[363787359,1748872234765,-430.0,0.00016568,2]
[363787360,1748872234775,-430.0,0.00016568,2]